bitfinex-derivatives/quotes_ETHF0:USTF0_20250421
["timestamp","ask_amount","ask_price","bid_price","bid_amount"]
[1745254567317,3.2078,1594.3,1593.8,12.2571]
[1745254567522,1.8217,1594.2,1594.1,0.00939585]
[1745254568231,6.8217,1594.2,1594.1,0.00939585]
[1745254568423,1.8217,1594.2,1594.1,0.00939585]
[1745254569330,1.8217,1594.2,1593.6,3.50409463]
[1745254569531,3.2078,1594.1,1593.6,3.49487776]
[1745254569830,1.8744,1594.0,1593.7,40.8]
[1745254570030,1.8744,1594.0,1593.7,42.6204]
[1745254570723,1.8744,1594.0,1593.7,40.8]
[1745254571923,3.2078,1593.8,1592.9,3.2078]
[1745254572126,3.2078,1594.1,1593.5,3.2078]
[1745254572326,3.2078,1594.4,1593.7,3.2078]
[1745254572527,0.00939585,1594.0,1593.8,1.8506]
[1745254572727,3.2078,1594.7,1593.9,10.45058313]
[1745254572928,3.19858313,1594.7,1594.1,3.2078]
[1745254573130,7.19461252,1595.1,1594.2,1.8506]
[1745254573329,1.7854,1594.9,1594.3,7.254]
[1745254573523,7.19461252,1595.1,1594.4,1.8506]
[1745254573723,8.98001252,1595.1,1594.7,3.2078]
[1745254573924,0.00939585,1594.9,1594.8,1.8506]
[1745254574326,0.00939585,1594.9,1594.8,6.8506]
[1745254574532,0.00939585,1594.9,1594.8,1.8506]
[1745254574728,0.00939585,1594.9,1594.8,6.8506]
[1745254575121,3.21719585,1594.9,1594.8,1.8506]
[1745254575430,3.21719585,1594.9,1594.7,7.254]
[1745254575431,3.21719585,1594.9,1594.6,0.00939585]
[1745254575727,1.8587,1594.8,1594.6,0.00939585]
[1745254576332,5.0665,1594.8,1594.6,0.00939585]
[1745254577332,1.8587,1594.8,1594.6,0.00939585]
[1745254577525,5.0665,1594.8,1594.6,0.00939585]
[1745254578121,1.8587,1594.8,1594.6,0.00939585]
[1745254579021,0.00939585,1594.9,1594.6,0.00939585]
[1745254579227,0.00939585,1594.9,1594.8,3.2078]
[1745254579428,0.00939585,1594.9,1594.8,5.0174]
[1745254579827,0.00939585,1594.9,1594.8,1.8096]
[1745254580028,4.47107585,1594.9,1594.6,4.47124585]
[1745254580223,1.8553,1594.8,1594.6,4.47122585]
[1745254580831,0.00939585,1594.9,1594.6,3.21719585]
[1745254581031,0.00939585,1594.9,1594.8,1.25392]
[1745254581524,1.26324585,1594.9,1594.6,3.21719585]
[1745254581728,1.8013,1594.8,1594.7,1.254]
[1745254582437,1.8013,1594.8,1594.7,3.1604]
[1745254582833,0.00939585,1594.9,1594.8,1.25392]
[1745254583333,3.06461585,1594.9,1594.6,4.47124585]
[1745254583535,1.81069585,1594.9,1594.6,4.47124585]
[1745254583838,1.254,1594.7,1594.6,0.00939585]
[1745254584232,3.12,1594.7,1594.6,0.00939585]
[1745254584439,3.13523,1594.6,1593.9,12.2832]
[1745254584639,3.2078,1594.4,1594.0,1.9484]
[1745254584933,1.25444,1594.2,1594.0,1.9484]
[1745254585132,1.25455,1594.0,1593.8,1.25466]
[1745254585333,1.866,1594.1,1593.8,40.8]
[1745254585533,1.86617898,1594.1,1593.9,1.25461]
[1745254585729,0.00939585,1594.1,1594.0,1.25455]
[1745254586029,3.2078,1594.6,1594.2,3.13599]
[1745254586343,3.2078,1594.6,1594.5,1.25416]
[1745254587532,3.2078,1594.6,1594.5,3.18626]
[1745254587932,3.2078,1594.6,1594.5,1.9321]
[1745254588132,3.2078,1594.6,1594.5,1.25416]
[1745254588432,3.2078,1594.6,1594.4,0.00939585]
[1745254588633,1.8411,1594.5,1594.4,0.00939585]
[1745254588931,0.00939585,1594.7,1594.4,0.00939585]
[1745254589126,0.00939585,1594.7,1594.6,1.25408]
[1745254589127,1.85049585,1594.7,1594.6,1.25408]
[1745254589330,1.85049585,1594.7,1594.5,1.25409]
[1745254589535,3.10449585,1594.7,1594.4,1.94149585]
[1745254589737,3.10449585,1594.7,1594.5,1.25415]
[1745254590035,3.10452585,1594.7,1594.4,0.00939585]
[1745254590227,3.10449585,1594.7,1594.5,1.25412]
[1745254590429,0.00939585,1594.7,1594.6,1.25408]
[1745254590633,0.00939585,1594.7,1594.4,1.94149585]
[1745254590842,0.00939585,1594.7,1594.6,1.25408]
[1745254591037,1.8126,1595.1,1594.7,3.13487]
[1745254591337,3.04102,1595.6,1595.0,3.13442]
[1745254591538,1.25337,1595.5,1595.1,12.01591]
[1745254591746,1.8126,1595.6,1595.3,1.25349]
[1745254592341,1.8126,1595.6,1595.3,0.00939585]
[1745254592342,3.2078,1595.5,1595.3,0.00939585]
[1745254592544,3.06605,1595.4,1595.3,0.00939585]
[1745254593337,9.94626,1595.4,1594.9,6.987]
[1745254593637,1.25376,1595.0,1594.9,6.987]
[1745254593844,6.34208,1595.1,1594.7,1.25397]
[1745254594145,1.9285,1594.9,1594.8,1.25385]
[1745254594537,1.9285,1594.9,1594.7,42.7643]
[1745254594538,3.2078,1595.1,1595.0,1.25372]
[1745254594742,3.2078,1595.1,1595.0,1.25376]
[1745254594940,4.4615,1595.1,1594.9,1.25381]
[1745254595238,1.25379,1595.0,1594.7,42.77369585]
[1745254595439,1.9285,1595.0,1594.7,42.77369585]
[1745254595642,1.25392,1594.8,1594.7,40.80939585]
[1745254596545,6.39008,1595.0,1594.7,42.06334585]
[1745254596746,5.1363,1595.0,1594.8,1.25389]
[1745254596941,6.39006,1595.0,1594.9,1.8165]
[1745254597338,5.1363,1595.0,1594.9,1.8165]
[1745254597539,6.39006,1595.0,1594.9,1.8165]
[1745254597939,1.25392,1594.8,1594.7,40.80939585]
[1745254598636,1.25376,1595.1,1594.7,40.80939585]
[1745254598841,1.25378,1595.0,1594.8,1.25387]
[1745254599042,1.25378,1595.0,1594.9,1.8165]
[1745254599441,4.46158,1595.0,1594.9,1.8165]
[1745254600139,1.25389,1594.9,1594.7,49.04936585]
[1745254600339,1.25389,1594.9,1594.7,49.74519585]
[1745254600340,3.22439,1594.9,1594.7,49.74519585]
[1745254600548,1.9705,1594.9,1594.7,50.99919585]
[1745254600742,1.9705,1594.9,1594.7,49.74519585]
[1745254601148,6.34163,1595.3,1594.7,52.95299585]
[1745254601353,3.2078,1595.1,1594.7,45.96699585]
[1745254601645,3.2078,1595.1,1594.9,1.2538]
[1745254601846,3.2078,1595.1,1594.7,56.08796585]
[1745254601847,3.2078,1595.1,1594.7,59.22293585]
[1745254602046,5.1783,1595.1,1594.8,1.25386]
[1745254602246,5.1783,1595.1,1594.9,1.25379]
[1745254603250,5.1783,1595.1,1595.0,1.25376]
[1745254603941,5.1783,1595.1,1594.9,1.25379]
[1745254604444,1.9705,1595.1,1595.0,1.25376]
[1745254604848,3.2078,1595.1,1595.0,1.25376]
[1745254605750,2.0103,1595.1,1595.0,1.25376]
[1745254605945,1.915,1595.4,1595.3,1.25353]
[1745254606145,2.0103,1595.4,1595.3,1.25353]
[1745254607447,2.0103,1595.4,1595.2,1.25354]
[1745254607748,4.46139,1595.3,1595.1,6.722]
[1745254607942,2.0103,1595.2,1595.1,1.25368]
[1745254608452,3.26393,1595.2,1595.0,1.25371]
[1745254608953,3.2078,1595.1,1595.0,1.25374]
[1745254609154,5.1982,1595.1,1595.0,1.25374]
[1745254609754,1.9904,1595.1,1595.0,1.25374]
[1745254609954,4.46137,1595.3,1595.1,1.25366]
[1745254610153,3.24401,1595.2,1595.0,1.2537]
[1745254610352,3.2078,1595.1,1595.0,1.25376]
[1745254610653,5.1982,1595.1,1595.0,1.25376]
[1745254610842,1.9904,1595.1,1595.0,1.25376]
[1745254611544,4.46139,1595.3,1595.0,5.0]
[1745254611744,3.2078,1595.3,1595.2,1.25361]
[1745254612152,5.1469,1595.3,1595.2,1.25361]
[1745254613051,6.40045,1595.3,1595.1,1.8528]
[1745254613354,7.19461252,1595.5,1595.1,1.8528]
[1745254613561,9.13371252,1595.5,1595.1,4.987]
[1745254613752,9.13371252,1595.5,1595.2,1.25359]
[1745254613753,12.26715252,1595.5,1595.2,1.25359]
[1745254613951,12.26715252,1595.5,1595.1,1.25363]
[1745254613952,4.46137,1595.3,1595.1,1.25363]
[1745254614151,1.9391,1595.2,1595.1,1.25363]
[1745254615253,1.9391,1595.2,1595.1,1.25368]
[1745254615458,3.19274,1595.2,1595.0,3.10651]
[1745254615659,1.25364,1595.2,1595.1,1.25368]
[1745254615856,3.08044,1595.2,1595.0,3.10652]
[1745254616251,3.2078,1595.1,1595.0,3.10649]
[1745254616460,5.0346,1595.1,1595.0,3.10649]
[1745254617050,5.0346,1595.1,1594.7,0.00939585]
[1745254617051,1.25392,1594.8,1594.7,0.00939585]
[1745254617258,3.13539,1594.6,1594.1,1.25444]
[1745254617457,4.46214,1594.3,1594.0,11.47631361]
[1745254617653,3.2078,1594.3,1594.0,51.02180361]
[1745254617854,5.1681,1594.5,1594.0,59.15815361]
[1745254618054,5.1681,1594.5,1594.3,1.25426]
[1745254618351,5.1681,1594.5,1594.4,1.25423]
[1745254618352,3.2078,1594.5,1594.4,1.25423]
[1745254619162,0.00939585,1594.6,1594.5,1.25416]
[1745254620767,3.2078,1595.0,1594.5,9.6598]
[1745254621073,3.98681252,1594.7,1594.6,3.21148]
[1745254622264,3.98681252,1594.7,1594.6,8.21148]
[1745254622766,2.25961644,1594.7,1594.6,8.21148]
[1745254622958,0.98453644,1594.7,1594.6,8.21148]
[1745254623264,0.98453644,1594.7,1594.6,3.21148]
[1745254623455,0.98453644,1594.7,1594.6,8.21148]
[1745254623656,0.98453644,1594.7,1594.6,49.01148]
[1745254624270,0.00939585,1594.8,1594.7,1.254]
[1745254624566,0.00939585,1594.8,1594.7,6.3316]
[1745254624866,0.00939585,1594.8,1594.7,47.1316]
[1745254626466,4.47111585,1594.8,1594.5,6.46139585]
[1745254626662,4.47111585,1594.8,1594.6,1.25407]
[1745254626966,4.47111585,1594.8,1594.5,48.51550585]
[1745254627272,4.47113585,1594.8,1594.5,47.26139585]
[1745254627462,1.254,1594.7,1594.5,48.51550585]
[1745254627656,3.21719585,1594.8,1594.7,1.254]
[1745254627967,3.21719585,1594.8,1594.5,47.26139585]
[1745254627968,4.47116585,1594.8,1594.5,50.41148585]
[1745254628363,1.254,1594.7,1594.5,50.41148585]
[1745254628575,4.47117585,1594.8,1594.5,50.41148585]
[1745254629069,4.47117585,1594.8,1594.6,1.25406]
[1745254629472,4.47117585,1594.8,1594.5,50.41149585]
[1745254629765,4.47117585,1594.8,1594.5,47.26139585]
[1745254629971,4.47117585,1594.8,1594.5,48.51550585]
[1745254630274,1.25403,1594.7,1594.5,48.51550585]
[1745254630667,3.21719585,1594.8,1594.5,47.26139585]
[1745254630861,4.47118585,1594.8,1594.6,1.25406]
[1745254631172,3.21719585,1594.8,1594.7,1.254]
[1745254631774,9.47113585,1594.8,1594.6,1.25401]
[1745254631969,0.00939585,1594.8,1594.7,1.254]
[1745254636171,3.21719585,1594.8,1594.5,50.46919585]
[1745254636374,6.38777585,1594.8,1594.6,1.25407]
[1745254636560,6.38777585,1594.8,1594.5,50.46919585]
[1745254636561,6.38777585,1594.8,1594.5,0.00939585]
[1745254636769,6.34302,1594.6,1594.0,3.2078]
[1745254636971,3.2078,1594.2,1593.8,120.4241836]
[1745254637176,4.46208,1594.4,1594.1,1.25439]
[1745254637372,1.9535,1594.3,1594.1,1.25447]
[1745254637972,3.2078,1594.2,1593.9,8.20650361]
[1745254638272,4.47114585,1594.8,1594.5,1.25416]
[1745254638474,1.9535,1594.6,1594.5,1.25416]
[1745254638872,3.21719585,1594.8,1594.7,1.254]
[1745254639176,5.17069585,1594.8,1594.6,1.25402]
[1745254639770,6.42463585,1594.8,1594.5,1.25412]
[1745254639970,5.17069585,1594.8,1594.6,1.25403]
[1745254640179,8.01257849,1594.7,1594.6,1.25403]
[1745254640377,9.93157849,1594.7,1594.6,1.25403]
[1745254640874,9.93157849,1594.7,1594.6,1.25408]
[1745254641480,2.64e-06,1594.7,1594.6,12.45208]
[1745254641679,0.28286996,1595.0,1594.9,1.25384]
[1745254641975,0.28286996,1595.0,1594.7,1.9607]
[1745254642179,2.0013,1594.9,1594.8,1.25386]
[1745254642681,2.29356581,1595.0,1594.7,0.00939585]
[1745254642883,2.29356581,1595.0,1594.8,1.25388]
[1745254643278,8.54736581,1595.0,1594.7,1.26332585]
[1745254643585,3.2078,1594.8,1594.7,0.00939585]
[1745254643776,1.25387,1594.9,1594.7,1.26339585]
[1745254643980,5.2091,1594.8,1594.7,0.00939585]
[1745254644581,10.2091,1594.8,1594.7,0.00939585]
[1745254644984,11.46302,1594.8,1594.7,0.00939585]
[1745254646280,10.2091,1594.8,1594.7,1.26339585]
[1745254646479,5.2091,1594.8,1594.7,1.26339585]
[1745254646685,5.2091,1594.8,1594.7,0.00939585]
[1745254646984,5.2091,1594.8,1594.7,1.26339585]
[1745254647379,2.0013,1594.8,1594.7,1.26339585]
[1745254648187,5.2091,1594.8,1594.7,1.26339585]
[1745254648687,2.0013,1594.8,1594.7,1.26339585]
[1745254648888,6.03582359,1595.0,1594.9,1.25384]
[1745254649476,0.00939585,1595.0,1594.9,1.25384]
[1745254650075,2.01049585,1595.0,1594.9,1.25384]
[1745254650778,2.01049585,1595.0,1594.8,1.25386]
[1745254650980,3.2078,1594.9,1594.7,7.46134585]
[1745254651190,2.0011,1594.8,1594.7,0.00939585]
[1745254651487,5.10952,1594.8,1594.7,0.00939585]
[1745254652190,3.8556,1594.8,1594.7,0.00939585]
[1745254652487,5.10952,1594.8,1594.7,0.00939585]
[1745254653084,2.0011,1594.8,1594.7,1.26339585]
[1745254653286,2.0011,1594.8,1594.7,0.00939585]
[1745254653487,3.25502,1594.8,1594.7,0.00939585]
[1745254654180,1.25404,1594.7,1594.5,1.25414]
[1745254654385,1.9798,1594.6,1594.5,1.25414]
[1745254655990,3.2078,1594.9,1594.5,3.1352]
[1745254656185,1.9798,1594.9,1594.8,1.25392]
[1745254656684,5.1876,1594.9,1594.8,1.25392]
[1745254656983,11.21402774,1594.9,1594.8,1.25392]
[1745254657690,8.00622774,1594.9,1594.8,1.25392]
[1745254658391,6.02642774,1594.9,1594.8,1.25392]
[1745254658787,7.94842774,1594.9,1594.8,1.25392]
[1745254658983,6.02642774,1594.9,1594.8,1.25392]
[1745254659186,6.02642774,1594.9,1594.8,6.25392]
[1745254659494,6.01703189,1594.9,1594.8,9.46172]
[1745254660586,0.00939585,1595.0,1594.9,1.25384]
[1745254660789,0.00939585,1595.0,1594.9,3.15024]
[1745254663792,0.00939585,1595.0,1594.9,8.15024]
[1745254663988,0.00939585,1595.0,1594.9,9.34724]
[1745254666491,3.21719585,1595.0,1594.9,1.25384]
[1745254666692,3.21719585,1595.0,1594.7,3.13497]
[1745254666895,1.8223,1594.9,1594.8,1.25392]
[1745254667098,3.21719585,1595.0,1594.9,1.25384]
[1745254667602,5.03949585,1595.0,1594.7,3.135]
[1745254667791,5.03949585,1595.0,1594.7,4.9513]
[1745254667997,1.83169585,1595.0,1594.9,1.25384]
[1745254668399,1.83169585,1595.0,1594.9,3.07014]
[1745254669201,0.00939585,1595.0,1594.9,3.07014]
[1745254671206,6.002,1595.5,1595.0,3.13442]
[1745254671207,3.2078,1595.5,1595.0,3.13442]
[1745254671391,3.2078,1595.5,1595.1,11.35254]
[1745254671595,3.2078,1595.5,1595.3,1.25347]
[1745254672001,3.2078,1595.5,1595.2,42.6763]
[1745254672203,4.47058585,1595.5,1595.3,1.25351]
[1745254672705,3.21719585,1595.5,1595.3,1.25351]
[1745254673003,4.47059585,1595.5,1595.3,1.25351]
[1745254673498,3.21719585,1595.5,1595.2,40.80939585]
[1745254673699,3.21719585,1595.5,1595.2,0.00939585]
[1745254673700,4.46133,1595.3,1595.2,0.00939585]
[1745254674205,6.2682,1595.2,1594.8,40.8]
[1745254674407,4.46164,1594.9,1594.7,1.25397]
[1745254674605,1.8998,1594.8,1594.7,1.25397]
[1745254674905,1.8998,1594.8,1594.7,42.05397]
[1745254676201,1.8998,1594.8,1594.6,7.25604]
[1745254676401,4.4618,1594.7,1594.6,6.002]
[1745254676608,5.0018,1594.7,1594.6,1.25408]
[1745254677103,6.8562,1594.7,1594.6,1.25408]
[1745254677306,6.8562,1594.7,1594.4,42.6823]
[1745254677604,3.2078,1594.5,1594.4,42.6823]
[1745254677804,3.2078,1594.5,1593.8,6.2735]
[1745254677805,3.2078,1594.5,1594.0,0.5104089]
[1745254678001,3.2078,1594.2,1593.7,9.46121361]
[1745254678308,3.2078,1593.9,1593.7,10.08880361]
[1745254678508,3.2078,1593.9,1593.7,10.07958674]
[1745254678509,4.46244,1593.9,1593.7,10.07958674]
[1745254678700,1.8346,1593.8,1593.7,10.07958674]
[1745254679001,3.56600797,1593.8,1593.7,8.19728674]
[1745254679209,1.25479,1593.7,1593.6,12.3326436]
[1745254679401,8.74508797,1593.7,1593.6,12.3326436]
[1745254679594,8.74419424,1593.7,1593.6,12.3326436]
[1745254679802,4.28160424,1593.7,1593.6,12.3326436]
[1745254680304,4.28160424,1593.7,1593.6,15.4455036]
[1745254680507,7.48940424,1593.7,1593.6,15.4455036]
[1745254680807,7.48940424,1593.7,1593.6,13.5875036]
[1745254680998,8.74421168,1593.7,1593.6,14.1906436]
[1745254681200,8.74421168,1593.7,1593.6,12.3326436]
[1745254681505,8.74421168,1593.7,1593.5,8.85354079]
[1745254681506,4.46266,1593.6,1593.5,8.85354079]
[1745254681704,4.93848168,1593.6,1593.5,7.52867079]
[1745254682009,4.93848168,1593.6,1592.8,3.2078]
[1745254682010,3.13764,1593.4,1592.8,3.2078]
[1745254682202,3.2078,1593.2,1592.8,9.48300916]
[1745254682399,1.25542,1592.9,1592.8,6.27520916]
[1745254682603,1.8865,1593.1,1592.9,1.25542]
[1745254682899,1.25534,1593.0,1592.8,7.53063916]
[1745254683099,1.8865,1592.9,1592.8,7.53063916]
[1745254683303,1.8865,1592.9,1592.8,7.53069916]
[1745254683902,3.14192,1592.9,1592.8,47.07520916]
[1745254684208,1.2556,1592.7,1592.5,12.53302803]
[1745254684408,3.14215,1592.6,1592.5,12.53302803]
[1745254684602,6.34995,1592.6,1592.5,12.53302803]
[1745254684802,11.34995,1592.6,1592.5,12.53302803]
[1745254685002,11.82195638,1592.6,1592.5,12.53302803]
[1745254685203,18.51461384,1592.6,1592.5,12.53302803]
[1745254685408,1.25581,1592.4,1592.3,20.04720257]
[1745254685705,1.25597,1592.2,1592.1,33.13257132]
[1745254685906,4.93577638,1592.2,1592.1,33.13257132]
[1745254686113,11.62843384,1592.2,1592.1,31.64698132]
[1745254686302,16.62843384,1592.2,1592.1,30.33268132]
[1745254686509,16.62843384,1592.2,1592.1,26.52003132]
[1745254687009,16.62843384,1592.2,1592.1,22.79580132]
[1745254687205,11.62843384,1592.2,1592.1,21.46448132]
[1745254687412,1.25605,1592.1,1592.0,1.0]
[1745254687704,8.23483048,1592.1,1592.0,1.0]
[1745254687903,13.23483048,1592.1,1592.0,1.0]
[1745254688103,14.24283048,1592.1,1592.0,1.0]
[1745254688305,8.23483048,1592.1,1592.0,1.0]
[1745254688618,1.25605,1592.1,1592.0,1.0]
[1745254689106,8.34365347,1592.1,1592.0,1.0]
[1745254689303,8.70755347,1592.1,1592.0,1.0]
[1745254690201,3.14058,1591.9,1591.3,3.2078]
[1745254690402,3.2078,1591.6,1591.3,1.9032]
[1745254690605,1.25652,1591.5,1591.3,42.58691173]
[1745254690911,16.40146462,1591.8,1591.6,1.25641]
[1745254690912,9.22719585,1591.8,1591.6,1.25641]
[1745254691206,0.00939585,1591.8,1591.7,1.84824257]
[1745254691600,0.00939585,1591.8,1591.7,40.68345173]
[1745254691801,3.2078,1591.9,1591.8,1.25625]
[1745254691997,4.464,1591.9,1591.8,19.42709173]
[1745254692205,4.464,1591.9,1591.8,38.83520916]
[1745254692401,1.25628,1591.8,1591.7,1.8205]
[1745254693310,10.48349566,1591.9,1591.7,23.07682]
[1745254693506,3.21722566,1591.9,1591.7,23.66870257]
[1745254693712,1.25628,1591.8,1591.7,42.50392173]
[1745254694208,1.25628,1591.8,1591.7,1.8205]
[1745254694409,1.25636,1591.7,1591.6,0.00942566]
[1745254694606,1.25636,1591.7,1591.6,20.00942566]
[1745254694806,1.25636,1591.7,1591.6,21.26586566]
[1745254695013,1.25636,1591.7,1591.6,20.00942566]
[1745254695209,3.21722566,1591.9,1591.6,20.60130823]
[1745254695410,1.25628,1591.8,1591.7,1.8415]
[1745254695608,1.25628,1591.8,1591.7,3.09786]
[1745254695810,3.21722566,1591.9,1591.7,41.26859173]
[1745254696014,1.25628,1591.8,1591.7,42.52494173]
[1745254696214,3.21722566,1591.9,1591.7,41.26859173]
[1745254696408,1.25605,1592.1,1592.0,0.59188257]
[1745254696609,15.2048,1592.6,1591.9,0.59188257]
[1745254696610,3.14009,1592.2,1591.9,0.59188257]
[1745254696805,3.14009,1592.2,1591.9,21.29899173]
[1745254697013,6.8389314,1592.5,1592.1,3.79968257]
[1745254697312,11.490824,1592.3,1592.2,1.8719]
[1745254697706,1.25611,1592.1,1592.0,0.59188257]
[1745254697912,1.25604,1592.2,1592.1,19.42709173]
[1745254698215,1.25636,1591.7,1591.6,0.00942566]
[1745254698512,1.25632,1591.8,1591.6,35.08796173]
[1745254698705,1.25628,1591.8,1591.7,17.03938173]
[1745254698910,1.25627,1591.9,1591.7,17.03938173]
[1745254699110,1.25627,1591.9,1591.8,18.29566173]
[1745254699310,1.25618,1592.0,1591.8,18.29566173]
[1745254699512,1.25611,1592.1,1591.9,1.2562]
[1745254699714,1.25611,1592.1,1591.9,18.29558173]
[1745254699918,1.25611,1592.1,1592.0,2.61883943]
[1745254700117,1.25596,1592.3,1592.0,2.61883943]
[1745254700306,3.13932,1592.6,1592.1,2.61883943]
[1745254700608,3.13932,1592.6,1592.1,5.72808943]
[1745254700609,1.25597,1592.2,1592.1,5.72808943]
[1745254700813,1.25597,1592.2,1592.1,22.51086377]
[1745254701020,1.25597,1592.2,1592.1,24.39626377]
[1745254701719,1.25597,1592.2,1592.1,23.14021377]
[1745254702513,1.25586,1592.4,1592.1,23.14021377]
[1745254702714,1.26521566,1592.5,1592.2,4.50423943]
[1745254702917,0.00942566,1592.5,1592.3,5.0692]
[1745254703118,0.00942566,1592.5,1592.4,1.8564]
[1745254703119,1.26515566,1592.5,1592.4,1.8564]
[1745254703315,4.9419302,1592.5,1592.4,1.84700415]
[1745254703520,7.10642934,1592.5,1592.4,22.50442792]
[1745254703719,8.80723,1592.7,1592.4,26.24861792]
[1745254703919,10.06286,1592.7,1592.5,7.08232943]
[1745254704314,1.25565,1592.6,1592.5,22.60941377]
[1745254704620,1.7256363,1592.6,1592.5,22.60941377]
[1745254704818,1.25578,1592.5,1592.3,4.46363]
[1745254705115,1.25578,1592.5,1592.4,0.00942566]
[1745254705316,6.95072132,1592.4,1592.1,1.8532]
[1745254705624,1.25597,1592.2,1592.1,18.63597434]
[1745254705922,1.25581,1592.4,1592.2,3.87475943]
[1745254706122,0.4711584,1592.3,1592.2,22.44913377]
[1745254706322,1.72705045,1592.3,1592.2,18.57437434]
[1745254706524,0.47116045,1592.3,1592.2,24.26888377]
[1745254706817,0.47116045,1592.3,1592.2,29.26888377]
[1745254707017,8.67896045,1592.3,1592.1,0.00942566]
[1745254707223,1.25636,1591.7,1591.6,1.8197]
[1745254707413,1.25676,1591.2,1591.1,1.7727]
[1745254707614,0.47116045,1591.2,1591.1,4.25996434]
[1745254707815,0.47116045,1591.2,1591.1,11.87880377]
[1745254708026,6.34833,1591.9,1591.2,2.61883943]
[1745254708224,1.25648,1591.6,1591.4,4.46439]
[1745254708520,0.00942566,1591.7,1591.5,1.7916]
[1745254708726,1.26581566,1591.7,1591.6,3.2078]
[1745254709021,1.25625,1591.9,1591.7,1.25634]
[1745254709222,1.25625,1591.9,1591.7,5.64787943]
[1745254709423,1.25625,1591.9,1591.8,2.61883943]
[1745254710624,1.88192566,1592.0,1591.7,1.7727]
[1745254710625,1.25628,1591.8,1591.7,1.7727]
[1745254711133,1.25644,1591.6,1591.5,1.7916]
[1745254711322,1.25652,1591.5,1591.4,3.21722566]
[1745254711526,1.25652,1591.5,1591.4,2.62826509]
[1745254711918,1.25652,1591.5,1591.4,0.00942566]
[1745254712318,4.46432,1591.5,1591.4,0.00942566]
[1745254712527,1.25652,1591.5,1591.4,2.62826509]
[1745254712721,1.25652,1591.5,1591.4,4.52306509]
[1745254712922,3.14980566,1592.0,1591.6,1.25639]
[1745254713129,3.14980566,1592.0,1591.7,7.72143943]
[1745254713424,1.25624,1591.9,1591.8,1.25627]
[1745254713624,1.25624,1591.9,1591.8,4.49163943]
[1745254713927,0.00942566,1592.0,1591.7,3.2078]
[1745254714224,1.25636,1591.7,1591.6,1.8948]
[1745254714819,1.25636,1591.7,1591.6,4.51363943]
[1745254715320,1.25644,1591.6,1591.5,3.0503661]
[1745254715521,1.25652,1591.5,1591.4,5.66e-06]
[1745254715819,13.30030781,1591.5,1591.4,5.66e-06]
[1745254716022,1.25692,1591.0,1590.9,8.64e-06]
[1745254716220,10.44672,1591.0,1590.9,8.64e-06]
[1745254716421,22.04248647,1591.0,1590.9,8.64e-06]
[1745254716623,1.25692,1591.0,1590.9,8.64e-06]
[1745254717125,0.00942566,1591.1,1590.9,8.64e-06]
[1745254717631,1.25692,1591.0,1590.9,8.64e-06]
[1745254717930,3.06492,1591.0,1590.9,8.64e-06]
[1745254718324,11.73879474,1591.0,1590.9,8.64e-06]
[1745254718533,1.25692,1591.0,1590.9,8.64e-06]
[1745254718725,0.00942566,1591.1,1590.9,8.64e-06]
[1745254718924,1.25692,1591.0,1590.9,8.64e-06]
[1745254719127,1.81172566,1591.1,1590.9,8.64e-06]
[1745254719331,1.25692,1591.0,1590.9,8.64e-06]
[1745254719527,3.06862566,1591.1,1590.9,1.25697864]
[1745254719734,1.26626566,1591.1,1591.0,1.9063]
[1745254719933,1.7347456,1591.1,1591.0,1.9063]
[1745254721528,0.46847994,1591.1,1591.0,8.16322]
[1745254721731,1.2567,1591.3,1591.0,6.9063]
[1745254721922,1.25676,1591.2,1591.1,1.8105]
[1745254722233,3.13546,1591.2,1591.1,1.8105]
[1745254722533,1.25684,1591.1,1591.0,1.9063]
[1745254722827,0.00942566,1591.3,1591.0,1.9063]
[1745254723237,1.88812566,1591.3,1591.0,3.16319]
[1745254723531,7.23232818,1591.2,1590.9,5.08220864]
[1745254723735,3.13556,1591.1,1590.9,8.18875864]
[1745254723925,3.13554,1591.1,1590.9,8.18872864]
[1745254724627,1.25679,1591.2,1591.0,1.25692]
[1745254724833,1.25679,1591.2,1591.1,1.8462]
[1745254725019,0.00942566,1591.3,1591.1,3.10301]
[1745254725223,1.25676,1591.2,1591.1,1.8462]
[1745254725629,1.25692,1591.0,1590.9,8.64e-06]
[1745254725827,4.46472,1591.0,1590.8,0.00942566]
[1745254726030,1.25723,1590.6,1590.5,1.8462]
[1745254726524,1.25739,1590.4,1590.3,4.46527]
[1745254726828,1.9113,1590.5,1590.3,5.054]
[1745254727028,3.16861,1590.5,1590.4,1.9259]
[1745254727229,1.25731,1590.5,1590.4,1.9259]
[1745254727428,1.25722,1590.7,1590.6,1.25723]
[1745254727629,1.25725,1590.6,1590.5,1.25724]
[1745254727927,1.25718,1590.7,1590.6,1.25716]
[1745254728122,3.2078,1591.1,1590.6,1.9259]
[1745254728328,5.1043,1591.1,1590.8,3.2078]
[1745254728523,1.25698,1591.0,1590.9,1.9259]
[1745254728733,8.24644,1591.1,1590.7,1.885]
[1745254728935,1.25705,1590.9,1590.8,3.18297]
[1745254729232,1.25705,1590.9,1590.8,1.9259]
[1745254729630,1.25705,1590.9,1590.8,3.18297]
[1745254729833,1.25705,1590.9,1590.8,1.9259]
[1745254730035,1.25705,1590.9,1590.8,3.18297]
[1745254730235,1.25705,1590.9,1590.8,1.9259]
[1745254730534,1.25705,1590.9,1590.8,3.18297]
[1745254731141,1.25705,1590.9,1590.8,1.9259]
[1745254731534,11.38869,1591.1,1590.7,3.14209]
[1745254731535,1.25707,1590.8,1590.7,1.27388691]
[1745254731735,5.1043,1591.1,1590.7,0.01679691]
[1745254732042,1.25707,1590.8,1590.7,1.27385691]
[1745254732836,1.25707,1590.8,1590.7,0.01679691]
[1745254733743,1.71762043,1590.8,1590.7,1.27394691]
[1745254733945,1.71762043,1590.8,1590.7,0.01679691]
[1745254735046,3.65302043,1590.8,1590.7,0.01679691]
[1745254735346,3.65302043,1590.8,1590.7,1.94749691]
[1745254736748,1.71762043,1590.8,1590.7,1.94749691]
[1745254737135,0.4619157,1590.8,1590.7,3.20464691]
[1745254737533,1.7189857,1590.8,1590.7,3.20464691]
[1745254737737,0.4619157,1590.8,1590.7,3.20464691]